[Event "FIDE World School-ch O-13 2025"]
[Site "Vrnjacka Banja"]
[Date "2025.03.27"]
[Round "8.7"]
[White "Kuzmin, Sevastian"]
[Black "Simiyu Jadon"]
[Result "1-0"]
[Annotator "NA RC"]
[ECO "B90"]
[WhiteElo "1756"]
[BlackElo "1937"]
[PlyCount "111"]
[EventDate "2025.03.19"]
[EventType "swiss"]
[EventCountry "SRB"]
[SourceTitle "playchess.com"]
[Source "ChessBase"]
[SourceQuality "1"]
[TimeControl "5400+30"]

1. e4 {[%emt 0:00:02]} c5 {[%emt 0:00:25]} 2. Nf3 {[%emt 0:00:07]} d6 {[%emt 0:00:06]} 3. d4 {[%emt 0:00:05]} cxd4 {[%emt 0:00:05]} 4. Nxd4 {[%emt 0:00:05]} Nf6 {[%emt 0:00:06]} 5. Nc3 {[%emt 0:00:06]} a6 {[%emt 0:00:05]} 6. Be3 {[%emt 0:00:09]} e5 {[%emt 0:00:07]} 7. Nb3 {[%emt 0:00:06]} Be6 {[%emt 0:00:15]} 8. f3 {[%emt 0:00:08]} Be7 {[%emt 0:00:06]} 9. Qd2 {[%emt 0:00:07]} O-O {[%emt 0:00:12]} 10. O-O-O {[%emt 0:00:07]} Nbd7 {[%emt 0:00:08]} 11. g4 {[%emt 0:00:15]} b5 {[%emt 0:00:06]} 12. g5 {[%emt 0:00:24]} b4 {[%emt 0:00:09]} 13. gxf6 {[%emt 0:00:29]} bxc3 {[%emt 0:00:29]} 14. Qxc3 {[%emt 0:00:07]} Nxf6 {[%emt 0:00:09]} 15. Na5 {[%emt 0:00:32]} Qd7 {[%emt 0:06:07]} 16. Nc6 {[%emt 0:02:50]} Rfc8 {[%emt 0:01:45]} 17. Nxe7+ {[%emt 0:00:26]} Qxe7 {[%emt 0:00:11]} 18. Qa5 {[%emt 0:05:28]} Qd7 {[%emt 0:11:17]} 19. Bd3 {[%emt 0:05:51]} Qc6 {[%emt 0:01:59]} 20. Kb1 {[%emt 0:06:26]} d5 {[%emt 0:07:57]} 21. Rhg1 {[%emt 0:10:13]} g6 {[%emt 0:26:21]} 22. Ka1 {[%emt 0:22:29]} dxe4 {[%emt 0:17:22]} 23. fxe4 {[%emt 0:00:21]} Ng4 {[%emt 0:00:32]} 24. Bg5 {[%emt 0:15:23]} f6 {[%emt 0:08:39]} 25. Bh4 {[%emt 0:01:14]} Rab8 {[%emt 0:05:25]} 26. b3 {[%emt 0:12:53]} Ne3 {[%emt 0:03:02]} 27. Rc1 {[%emt 0:00:35]} Bf7 {[%emt 0:02:11]} 28. Bf2 {[%emt 0:01:03]} Nc4 {[%emt 0:09:14]} 29. Bxc4 {[%emt 0:01:16]} Bxc4 {[%emt 0:00:00]} 30. bxc4 {[%emt 0:00:06]} Qxc4 {[%emt 0:00:00]} 31. Qd5+ {[%emt 0:00:28]} Kg7 {[%emt 0:00:00]} 32. Qxc4 {[%emt 0:00:33]} Rxc4 {[%emt 0:00:00]} 33. Rge1 {[%emt 0:00:46]} h5 {[%emt 0:00:00]} 34. c3 {[%emt 0:02:08]} g5 {[%emt 0:00:00]} 35. h4 {[%emt 0:00:52]} g4 {[%emt 0:00:00]} 36. Rc2 {[%emt 0:01:15]} Kg6 {[%emt 0:00:00]} 37. Ree2 {[%emt 0:02:43]} a5 {[%emt 0:00:00]} 38. Be1 {[%emt 0:01:01]} a4 {[%emt 0:00:00]} 39. Rb2 {[%emt 0:01:41]} Rxb2 {[%emt 0:01:32]} 40. Kxb2 {[%emt 0:00:06]} f5 {[%emt 0:00:09]} 41. exf5+ {[%emt 0:00:41]} Kxf5 {[%emt 0:00:09]} 42. Bg3 {[%emt 0:00:42]} Rc5 {[%emt 0:00:15]} 43. Kc2 {[%emt 0:00:35]} e4 {[%emt 0:01:00]} 44. Rf2+ {[%emt 0:00:37]} Ke6 {[%emt 0:00:06]} 45. Rf4 {[%emt 0:00:46]} Re5 {[%emt 0:01:22]} 46. c4 {[%emt 0:01:15]} e3 {[%emt 0:01:41]} 47. Kd3 {[%emt 0:00:08]} e2 {[%emt 0:01:26]} 48. Re4 {[%emt 0:00:14]} Rxe4 {[%emt 0:00:23]} 49. Kxe4 {[%emt 0:00:04]} e1=B {[%emt 0:00:45]} 50. Bxe1 {[%emt 0:00:08]} Kd6 {[%emt 0:00:07]} 51. Kd4 {[%emt 0:00:08]} Kc6 {[%emt 0:00:15]} 52. Bg3 {[%emt 0:00:07]} Kd7 {[%emt 0:00:21]} 53. Kd5 {[%emt 0:00:07]} a3 {[%emt 0:00:08]} 54. c5 {[%emt 0:00:06]} Kc8 {[%emt 0:00:11]} 55. Kc6 {[%emt 0:00:05]} Kd8 {[%emt 0:00:06]} 56. Kb7 {[%emt 0:00:07]} 1-0

[Event "FIDE World School-ch O-13 2025"]
[Site "Vrnjacka Banja"]
[Date "2025.03.27"]
[Round "8.8"]
[White "Ritesh Maddukuri"]
[Black "Haresh, Venkata Narayanaswam"]
[Result "1-0"]
[Annotator "NA RC"]
[ECO "D00"]
[WhiteElo "1773"]
[BlackElo "1824"]
[PlyCount "101"]
[EventDate "2025.03.19"]
[EventType "swiss"]
[EventCountry "SRB"]
[SourceTitle "playchess.com"]
[Source "ChessBase"]
[SourceQuality "1"]
[TimeControl "5400+30"]

1. d4 {[%emt 0:00:28]} Nf6 {[%emt 0:00:05]} 2. Nf3 {[%emt 0:00:10]} g6 {[%emt 0:00:11]} 3. Nc3 {[%emt 0:00:07]} d5 {[%emt 0:00:28]} 4. Bf4 {[%emt 0:00:08]} Bg7 {[%emt 0:00:26]} 5. e3 {[%emt 0:00:15]} O-O {[%emt 0:00:21]} 6. Be2 {[%emt 0:00:18]} c5 {[%emt 0:09:08]} 7. Ne5 {[%emt 0:00:19]} Nc6 {[%emt 0:02:59]} 8. O-O {[%emt 0:00:20]} Bf5 {[%emt 0:08:38]} 9. dxc5 {[%emt 0:08:19]} Qa5 {[%emt 0:09:33]} 10. g4 {[%emt 0:12:02]} Be6 {[%emt 0:01:54]} 11. Nb5 {[%emt 0:07:51]} Rac8 {[%emt 0:11:11]} 12. c3 {[%emt 0:06:02]} Ne4 {[%emt 0:19:01]} 13. Nxc6 {[%emt 0:07:10]} bxc6 {[%emt 0:04:02]} 14. b4 {[%emt 0:00:51]} Qd8 {[%emt 0:01:13]} 15. Nd4 {[%emt 0:01:31]} Nxc3 {[%emt 0:01:05]} 16. Qe1 {[%emt 0:00:27]} Nxe2+ {[%emt 0:00:27]} 17. Qxe2 {[%emt 0:00:21]} Bd7 {[%emt 0:03:17]} 18. Bg5 {[%emt 0:01:31]} Qe8 {[%emt 0:03:15]} 19. Rab1 {[%emt 0:06:43]} e5 {[%emt 0:00:55]} 20. Nc2 {[%emt 0:01:19]} f5 {[%emt 0:02:15]} 21. gxf5 {[%emt 0:00:47]} Bxf5 {[%emt 0:01:01]} 22. f3 {[%emt 0:01:05]} h6 {[%emt 0:01:45]} 23. Bh4 {[%emt 0:00:11]} g5 {[%emt 0:00:42]} 24. Bg3 {[%emt 0:00:14]} Qg6 {[%emt 0:00:13]} 25. Rf2 {[%emt 0:01:17]} h5 {[%emt 0:09:06]} 26. h3 {[%emt 0:03:49]} Bxc2 {[%emt 0:04:16]} 27. Qxc2 {[%emt 0:00:37]} Qxc2 {[%emt 0:00:03]} 28. Rxc2 {[%emt 0:00:02]} Rxf3 {[%emt 0:00:02]} 29. Bf2 {[%emt 0:00:21]} Rxh3 {[%emt 0:00:42]} 30. b5 {[%emt 0:00:22]} cxb5 {[%emt 0:01:33]} 31. c6 {[%emt 0:00:43]} d4 {[%emt 0:02:28]} 32. Kg2 {[%emt 0:04:07]} g4 {[%emt 0:00:12]} 33. Rxb5 {[%emt 0:06:28]} dxe3 {[%emt 0:00:32]} 34. c7 {[%emt 0:00:06]} exf2 {[%emt 0:01:00]} 35. Rb8 {[%emt 0:00:10]} f1=Q+ {[%emt 0:00:13]} 36. Kxf1 {[%emt 0:00:10]} Rf3+ {[%emt 0:03:25]} 37. Rf2 {[%emt 0:00:04]} Rc3 {[%emt 0:00:40]} 38. Rxc8+ {[%emt 0:32:45]} Kh7 {[%emt 0:01:13]} 39. Rf7 {[%emt 0:00:00]} Kg6 {[%emt 0:00:00]} 40. Rd7 {[%emt 0:00:00]} Rc1+ {[%emt 0:00:13]} 41. Ke2 {[%emt 0:00:00]} Rc2+ {[%emt 0:00:40]} 42. Kd1 {[%emt 0:00:00]} Rc6 {[%emt 0:00:32]} 43. Rg8 {[%emt 0:00:00]} Kf6 {[%emt 0:00:23]} 44. Rdxg7 {[%emt 0:00:00]} Rc4 {[%emt 0:00:34]} 45. Rd7 {[%emt 0:00:00]} Ke6 {[%emt 0:00:10]} 46. Rh7 {[%emt 0:00:00]} Rd4+ {[%emt 0:00:09]} 47. Ke2 {[%emt 0:00:00]} Re4+ {[%emt 0:00:12]} 48. Kf2 {[%emt 0:00:00]} Rf4+ {[%emt 0:00:18]} 49. Kg2 {[%emt 0:00:00]} Rc4 {[%emt 0:00:31]} 50. c8=Q+ {[%emt 0:00:00]} Rxc8 {[%emt 0:00:03]} 51. Rxc8 {[%emt 0:00:00]} 1-0